fUSD/lending_fUSD_20240715
["ID","MTS","AMOUNT","RATE_DAILY","PERIOD"]
[332186991,1721017833468,-451.82631043,0.00013989,2]
[332186992,1721017833478,-500.0,0.00013989,2]
[332186993,1721017833487,-500.0,0.00013989,2]
[332186994,1721017833497,-500.0,0.00013989,2]
[332186995,1721017833506,-500.0,0.00013989,2]
[332186996,1721017833515,-576.74,0.00013989,2]
[332186997,1721017833525,-500.0,0.00013989,2]
[332186998,1721017833535,-765.33,0.00013989,2]
[332186999,1721017833544,-500.0,0.00013989,2]
[332187000,1721017833553,-500.0,0.00013989,2]
[332187001,1721017833562,-500.0,0.00013989,2]
[332187002,1721017833572,-1681.54,0.00013989,2]
[332187003,1721017833581,-500.0,0.00013989,2]
[332187004,1721017833590,-500.0,0.00013989,2]
[332187005,1721017833599,-383.75257845,0.00013989,2]
[332187006,1721017833611,-158.18742155,0.00013989,2]
[332187007,1721017833622,-102.96836012,0.00013989,2]
[332187008,1721017833634,-263.45398536,0.00013989,2]
[332187009,1721017833643,-553.0142435,0.00013989,2]
[332187010,1721017833652,-1594.98,0.00013989,2]
[332187011,1721017833661,-2654.96757367,0.0001399,2]
[332187012,1721017833672,-341.34701288,0.0001399,2]
[332187013,1721017833683,-1509.16932586,0.0001399,2]
[332187014,1721017833692,-1643.95769101,0.00013998,2]
[332187015,1721017833703,-1420.23093699,0.00013998,2]
[332187016,1721017833713,-1974.1317485,0.00013998,2]
[332187017,1721017833724,-1132.51470823,0.00013998,2]
[332187032,1721017837670,-12655.9032,0.00012596,2]
[332187033,1721017837679,-1000.0,0.000139,2]
[332187034,1721017837689,-51267.31040309,0.00013998,2]
[332187035,1721017837700,-6234.52390898,0.00013998,2]
[332187036,1721017837709,-9890.77010827,0.00013998,2]
[332187037,1721017837724,-1513.96519126,0.00013998,2]
[332187038,1721017837735,-1639.00870787,0.00013998,2]
[332187039,1721017837746,-12907.8911866,0.00013998,2]
[332187040,1721017837756,-235.19869256,0.00013999,2]
[332187041,1721017837765,-151.64601175,0.00013999,2]
[332187042,1721017837774,-372.10383454,0.00013999,2]
[332187043,1721017837783,-317021.77776614,0.00014,2]
[332187044,1721017837792,-95985.26666353,0.00014,2]
[332187045,1721017837807,-590.05754824,0.00014,2]
[332187046,1721017837818,-28722.8141531,0.00014,2]
[332187047,1721017837840,-1118.64598073,0.00014,2]
[332187048,1721017837852,-8119.95917606,0.00014,2]
[332187049,1721017838007,-1173.65274454,0.00014,2]
[332187050,1721017838018,-426.35735425,0.00014,2]
[332187051,1721017838029,-412.0,0.00014,2]
[332187215,1721017839771,-321.3686,0.00013753,2]
[332187218,1721017839781,-3791.50993256,0.00014,2]
[332187221,1721017839792,-38093.31421743,0.00014,2]
[332187228,1721017839828,-2844.67368354,0.00014,2]
[332187233,1721017839839,-1259.96086,0.00014,2]
[332187275,1721017840106,-727070.42768786,0.00014,2]
[332187493,1721017842886,-156.0,0.00011098,2]
[332187495,1721017842895,-485.85958326,0.00013989,2]
[332187506,1721017842997,-14.14041674,0.00013989,2]
[332187508,1721017843006,-645.30018291,0.00014,2]
[332187514,1721017843055,-1266.66506267,0.00014,2]
[332187517,1721017843066,-1711.97794435,0.00014,2]
[332187519,1721017843077,-865.0,0.00014,2]
[332187577,1721018836946,239.07151,0.00027,120]
[332187591,1721019031879,-683.19,0.00010799,2]
[332187593,1721019031888,-300.0,0.00011097,2]
[332187594,1721019031898,-4467.02483465,0.00011098,2]
[332187595,1721019031907,-236.97671182,0.00011098,2]
[332187596,1721019031987,-2815.3,0.00011098,2]
[332187597,1721019031999,-25.83881837,0.00011098,2]
[332187598,1721019032008,-526.41351292,0.00011098,2]
[332187599,1721019032017,-450.80300509,0.00011098,2]
[332187600,1721019032027,-368.29251134,0.00011098,2]
[332187601,1721019032036,-3030.02587802,0.00011098,2]
[332187602,1721019032045,-431.57658303,0.00011098,2]
[332187603,1721019032055,-45.73648048,0.00011098,2]
[332187604,1721019032067,-565.82,0.00011098,2]
[332187605,1721019032694,-2094.2,0.00011098,2]
[332187606,1721019032706,-442.95264918,0.00011098,2]
[332187607,1721019032715,-150.0,0.00011198,2]
[332187608,1721019032724,-346.24735082,0.00011199,2]
[332187609,1721019032735,-11038.91143297,0.00011199,2]
[332187610,1721019032746,-17688.71323719,0.00011199,2]
[332187611,1721019032757,-4633.01478385,0.00011199,2]
[332187612,1721019032768,-1956.37593354,0.00011199,2]
[332187613,1721019032779,-1722.63024292,0.00011199,2]
[332187614,1721019032790,-483.39404204,0.00011199,2]
[332187615,1721019032801,-361.36554768,0.00011199,2]
[332187616,1721019032812,-5631.02505531,0.00011199,2]
[332187617,1721019032823,-10246.7013457,0.00011199,2]
[332187618,1721019032832,-420.0,0.00012193,2]
[332187619,1721019032841,-255.0,0.00012251,2]
[332187620,1721019032850,-156.10991695,0.00012302,2]
[332187621,1721019032859,-4662.13873736,0.00012462,2]
[332187622,1721019032874,-4327.95496066,0.00012462,2]
[332187623,1721019032885,-5439.96,0.00012462,2]
[332187624,1721019032897,-5236.57630198,0.00012462,2]
[332187625,1721019032906,-1156.65168961,0.00012493,2]
[332187626,1721019032930,-74.63831039,0.00012493,2]
[332187627,1721019032940,-999.99,0.00012493,2]
[332187628,1721019032950,-1349.02,0.00012514,2]
[332187629,1721019032959,-181.73,0.00012514,2]
[332187630,1721019032969,-250.0,0.00012536,2]
[332187632,1721019032977,-211.77,0.00012572,2]
[332187633,1721019032986,-498.91,0.00012592,2]
[332187635,1721019032995,-150.0,0.000126,2]
[332187637,1721019033004,-800.0,0.00012667,2]
[332187639,1721019033013,-150.0,0.000127,2]
[332187640,1721019033023,-500.0,0.00012712,2]
[332187641,1721019033032,-291.95,0.00012717,2]
[332187642,1721019033041,-250.0,0.00012748,2]
[332187643,1721019033050,-150.0,0.00012755,2]
[332187644,1721019033059,-499.99,0.00012755,2]
[332187645,1721019033068,-760.24,0.00012755,2]
[332187646,1721019033077,-168.23,0.00012798,2]
[332187647,1721019033086,-150.0,0.000128,2]
[332187648,1721019033095,-181.59,0.00012808,2]
[332187649,1721019033104,-1555.85,0.00012808,2]
[332187650,1721019033113,-200.0,0.00012872,2]
[332187651,1721019033123,-1955.44,0.00012872,2]
[332187652,1721019033132,-150.0,0.000129,2]
[332187653,1721019033143,-1250.0,0.00013,2]
[332187654,1721019033155,-150.0,0.00013,2]
[332187655,1721019033164,-683.19,0.00013063,2]
[332187656,1721019033173,-150.0,0.000131,2]
[332187657,1721019033182,-355.15,0.00013178,2]
[332187658,1721019033193,-150.0,0.000132,2]
[332187659,1721019033202,-150.0,0.000133,2]
[332187660,1721019033211,-839.08,0.00013341,2]
[332187661,1721019033221,-302.006444,0.00013396,2]
[332187662,1721019033230,-327.59965,0.00013396,2]
[332187663,1721019033240,-587.0,0.00013398,2]
[332187664,1721019033249,-150.0,0.000134,2]
[332187665,1721019033259,-16979.0,0.00013448,2]
[332187666,1721019033269,-355.36,0.00013478,2]
[332187667,1721019033278,-529.24,0.00013478,2]
[332187668,1721019033287,-529.24,0.00013478,2]
[332187669,1721019033296,-355.36,0.00013478,2]
[332187670,1721019033306,-150.0,0.000135,2]
[332187671,1721019033315,-172.17689684,0.00013516,2]
[332187672,1721019033325,-302.006444,0.00013563,2]
[332187673,1721019033334,-327.59965,0.00013563,2]
[332187674,1721019033344,-529.24,0.00013578,2]
[332187675,1721019033353,-529.24,0.00013578,2]
[332187676,1721019033362,-529.24,0.00013578,2]
[332187677,1721019033371,-1057.71,0.00013578,2]
[332187678,1721019033383,-150.0,0.000136,2]
[332187679,1721019033392,-3061.2239,0.00013689,2]
[332187680,1721019033401,-459.88,0.00013699,2]
[332187681,1721019033410,-250.0,0.00013699,2]
[332187682,1721019033419,-150.0,0.000137,2]
[332187683,1721019033429,-7571.40787096,0.00013711,2]
[332187698,1721019037971,-304.84513288,0.00011197,2]
[332187700,1721019037980,-235.49009815,0.00013711,2]
[332187702,1721019037991,-2752.47299442,0.00013711,2]
[332187703,1721019038082,-893.94367323,0.00013711,2]
[332187704,1721019038092,-302.006444,0.00013731,2]
[332187705,1721019038101,-327.59965,0.00013731,2]
[332187706,1721019038110,-193.83550993,0.00013736,2]
[332187707,1721019038120,-535.1,0.00013767,3]
[332187708,1721019038129,-173.49,0.00013778,2]
[332187709,1721019038138,-305.78684184,0.00013798,2]
[332187710,1721019038154,-16021.86915816,0.00013798,2]
[332187711,1721019038163,-495.59646557,0.00013799,2]
[332187712,1721019038172,-495.59646552,0.00013799,2]
[332187713,1721019038182,-495.59646552,0.00013799,2]
[332187714,1721019038193,-495.59646552,0.00013799,2]
[332187715,1721019038202,-495.59646552,0.00013799,2]
[332187716,1721019038212,-710.457,0.000138,2]
[332187717,1721019038222,-150.0,0.000138,2]
[332187718,1721019038231,-495.59646552,0.00013811,2]
[332187719,1721019038241,-495.59646552,0.00013833,2]
[332187720,1721019038249,-495.59646552,0.00013856,2]
[332187721,1721019038259,-500.0,0.00013877,2]
[332187722,1721019038268,-500.0,0.00013877,2]
[332187723,1721019038277,-166.58054006,0.00013877,2]
[332187724,1721019038286,-242.73487421,0.00013877,2]
[332187726,1721019038494,-186.01177162,0.00013877,2]
[332187727,1721019038503,-500.0,0.00013877,2]
[332187728,1721019038512,-316.62562586,0.00013877,2]
[332187729,1721019038521,-500.0,0.00013877,2]
[332187730,1721019038530,-318.01973401,0.00013877,2]
[332187731,1721019038539,-792.98,0.00013877,2]
[332187733,1721019038549,-500.0,0.00013877,2]
[332187735,1721019038558,-1028.74,0.00013877,2]
[332187737,1721019038567,-500.0,0.00013877,2]
[332187739,1721019038576,-288.00113155,0.00013877,2]
[332187741,1721019038585,-196.27337353,0.00013877,2]
[332187743,1721019038594,-187.57240968,0.00013877,2]
[332187745,1721019038606,-319.49218402,0.00013877,2]
[332187746,1721019038615,-519.82681978,0.00013877,2]
[332187748,1721019038624,-251.13678599,0.00013877,2]
[332187750,1721019038635,-248.86321401,0.00013877,2]
[332187752,1721019038645,-513.66327005,0.00013877,2]
[332187754,1721019038654,-500.0,0.00013877,2]
[332187756,1721019038663,-500.0,0.00013877,2]
[332187758,1721019038672,-215.54906891,0.00013877,2]
[332187761,1721019038684,-284.45093109,0.00013877,2]
[332187763,1721019038694,-108.97125614,0.00013877,2]
[332187765,1721019038704,-440.94053344,0.00013877,2]
[332187767,1721019038713,-500.0,0.00013877,2]
[332187769,1721019038722,-500.0,0.00013877,2]
[332187771,1721019038731,-519.47690633,0.00013877,2]
[332187773,1721019038740,-516.59150396,0.00013877,2]
[332187775,1721019038749,-598.79965437,0.00013877,2]
[332187777,1721019038758,-500.0,0.00013877,2]
[332187779,1721019038767,-500.0,0.00013877,2]
[332187781,1721019038777,-353.47459661,0.00013877,2]
[332187783,1721019038786,-500.0,0.00013877,2]
[332187785,1721019038795,-552.71,0.00013877,2]
[332187787,1721019038804,-500.0,0.00013877,2]
[332187789,1721019038814,-754.28,0.00013877,2]
[332187791,1721019038823,-500.0,0.00013877,2]
[332187793,1721019038831,-517.67941384,0.00013877,2]
[332187795,1721019038841,-495.59646552,0.00013878,2]
[332187797,1721019038850,-500.0,0.00013887,2]
[332187799,1721019038859,-500.0,0.00013888,2]
[332187801,1721019038868,-500.0,0.00013888,2]
[332187803,1721019038877,-200.0,0.00013888,2]
[332187805,1721019038887,-547.50514469,0.00013889,2]
[332187807,1721019038896,-309.88,0.0001389,3]
[332187809,1721019038905,-267.84720904,0.00013898,2]
[332187811,1721019038914,-302.006444,0.00013898,2]
[332187813,1721019038922,-327.59965,0.00013898,2]
[332187815,1721019038932,-267.84720901,0.00013899,2]
[332187817,1721019038941,-267.84720901,0.00013899,2]
[332187819,1721019038950,-267.84720901,0.000139,2]
[332187821,1721019038959,-17542.07085127,0.000139,2]
[332187823,1721019038970,-820.6495,0.000139,2]
[332187825,1721019038980,-987.00002,0.000139,2]
[332187828,1721019038994,-2821.24222915,0.000139,2]
[332187830,1721019039005,-2826.41109958,0.000139,2]
[332187831,1721019039014,-1000.0,0.000139,2]
[332187833,1721019039023,-405.65426742,0.000139,2]
[332187836,1721019039035,-1546.92006904,0.000139,2]
[332187837,1721019039044,-267.84720901,0.000139,2]
[332187839,1721019039053,-1000.0,0.000139,2]
[332187841,1721019039063,-1000.0,0.000139,2]
[332187843,1721019039072,-557.0,0.000139,3]
[332187845,1721019039081,-916.13783258,0.000139,3]
[332187847,1721019039092,-83.86216742,0.000139,3]
[332187849,1721019039102,-1000.0,0.000139,2]
[332187851,1721019039112,-1000.0,0.000139,2]
[332187853,1721019039121,-44.90300075,0.000139,3]
[332187856,1721019039132,-955.09699925,0.000139,3]
[332187858,1721019039144,-360.8499547,0.000139,3]
[332187860,1721019039155,-290.95999964,0.000139,3]
[332187888,1721019039549,-348.19004566,0.000139,3]
[332187890,1721019039558,-1000.0,0.000139,2]
[332187892,1721019039568,-495.59646552,0.000139,2]
[332187894,1721019039577,-150.0,0.000139,2]
[332187896,1721019039587,-417.93936495,0.0001392,2]
[332187898,1721019039596,-500.0,0.00013932,2]
[332187900,1721019039605,-500.0,0.00013932,2]
[332187902,1721019039615,-370.51767397,0.00013932,2]
[332187904,1721019039625,-196.75120937,0.00013932,2]
[332187906,1721019039634,-792.98,0.00013932,2]
[332187908,1721019039644,-500.0,0.00013932,2]
[332187910,1721019039654,-1028.74,0.00013932,2]
[332187929,1721019039826,-500.0,0.00013932,2]
[332187931,1721019039835,-500.0,0.00013932,2]
[332187933,1721019039845,-499.98968691,0.00013932,2]
[332187935,1721019039854,-500.0,0.00013932,2]
[332187937,1721019039864,-500.0,0.00013932,2]
[332187939,1721019039874,-514.44915505,0.00013932,2]
[332187941,1721019039884,-515.36157198,0.00013932,2]
[332187943,1721019039893,-500.0,0.00013932,2]
[332187945,1721019039902,-552.71,0.00013932,2]
[332187947,1721019039912,-500.0,0.00013932,2]
[332187949,1721019039922,-754.28,0.00013932,2]
[332187950,1721019039931,-500.0,0.00013932,2]
[332187952,1721019039941,-500.0,0.00013987,2]
[332187954,1721019039951,-500.0,0.00013987,2]
[332187956,1721019039960,-792.98,0.00013987,2]
[332187958,1721019039969,-500.0,0.00013987,2]
[332187960,1721019039978,-1028.74,0.00013987,2]
[332187962,1721019039988,-500.0,0.00013987,2]
[332187964,1721019039998,-500.0,0.00013987,2]
[332187966,1721019040007,-288.57533145,0.00013987,2]
[332187968,1721019040017,-552.71,0.00013987,2]
[332187970,1721019040027,-500.0,0.00013987,2]
[332187972,1721019040036,-754.28,0.00013987,2]
[332187974,1721019040046,-500.0,0.00013987,2]
[332187976,1721019040055,-297.26848214,0.00013989,2]
[332187978,1721019040065,-164.91172843,0.0001399,2]
[332187980,1721019040075,-164.91172843,0.0001399,2]
[332187982,1721019040084,-14232.4812497,0.00013998,2]
[332187984,1721019040093,-634.4680873,0.00013998,2]
[332187986,1721019040103,-158.789622,0.00013998,2]
[332187988,1721019040112,-6101.8616225,0.00013998,2]
[332187990,1721019040122,-1009.02573888,0.00013999,2]
[332187992,1721019040132,-500.0,0.00013999,2]
[332187994,1721019040142,-500.0,0.00013999,2]
[332187996,1721019040159,-500.0,0.00013999,2]
[332187998,1721019040168,-227.01541927,0.00013999,2]
[332188000,1721019040178,-500.0,0.00013999,2]
[332188002,1721019040188,-438.64822154,0.00013999,2]
[332188004,1721019040197,-500.0,0.00013999,2]
[332188006,1721019040207,-500.0,0.00013999,2]
[332188008,1721019040216,-438.227559,0.00013999,2]
[332188010,1721019040226,-360.08361523,0.00013999,2]
[332188012,1721019040235,-500.0,0.00013999,2]
[332188014,1721019040244,-500.0,0.00013999,2]
[332188016,1721019040253,-500.0,0.00013999,2]
[332188018,1721019040263,-500.0,0.00013999,2]
[332188020,1721019040272,-500.0,0.00013999,2]
[332188022,1721019040282,-500.0,0.00013999,2]
[332188023,1721019040291,-499.99999999,0.00013999,2]
[332188025,1721019040300,-247.41407561,0.00013999,2]
[332188027,1721019040310,-157.47677296,0.00013999,2]
[332188029,1721019040319,-401.85645811,0.00013999,2]
[332188031,1721019040328,-500.0,0.00013999,2]
[332188033,1721019040337,-513.00949159,0.00013999,2]
[332188035,1721019040347,-500.0,0.00013999,2]
[332188037,1721019040356,-500.0,0.00013999,2]
[332188039,1721019040365,-509.37654014,0.00013999,2]
[332188041,1721019040375,-500.0,0.00013999,2]
[332188043,1721019040385,-239.74626108,0.00013999,2]
[332188044,1721019040394,-500.0,0.00013999,2]
[332188046,1721019040403,-376.44880207,0.00013999,2]
[332188048,1721019040413,-500.0,0.00013999,2]
[332188050,1721019040422,-291.86610648,0.00013999,2]
[332188052,1721019040431,-500.0,0.00013999,2]
[332188054,1721019040440,-500.0,0.00013999,2]
[332188056,1721019040449,-566.46,0.00013999,2]
[332188058,1721019040458,-1611.48,0.00013999,2]
[332188060,1721019040467,-2214.95,0.00013999,2]
[332188062,1721019040477,-500.0,0.00013999,2]
[332188064,1721019040486,-500.0,0.00013999,2]
[332188066,1721019040495,-500.0,0.00013999,2]
[332188068,1721019040504,-500.0,0.00013999,2]
[332188070,1721019040513,-205.80462518,0.00013999,7]
[332188072,1721019040522,-373.57855585,0.00013999,2]
[332188074,1721019040531,-1585.06,0.00013999,2]
[332188076,1721019040541,-258.55625229,0.00013999,2]
[332188078,1721019040550,-2239.03212323,0.00013999,2]
[332188080,1721019040559,-1399.79,0.00013999,2]
[332188082,1721019040568,-306847.41836221,0.00014,2]
[332188084,1721019040578,-277008.62516531,0.00014,2]
[332188086,1721019040587,-2000.0,0.00014,2]
[332188088,1721019040596,-1593617.09613462,0.00014,2]
[332188090,1721019040608,-954.91498616,0.00014,2]
[332188100,1721019040697,-1684.53,0.00014,2]
[332188102,1721019040708,-560.58454009,0.00014,2]
[332188104,1721019040720,-910.0,0.00014,2]
[332188106,1721019040731,-514.90811892,0.00014,2]
[332188109,1721019040751,-1328530.25328159,0.00014,2]
[332188112,1721019040763,-2052.84515894,0.00014,2]
[332188114,1721019040774,-13857.20132762,0.00014,2]
[332188116,1721019040784,-9613.92971346,0.00014,2]
[332188118,1721019040795,-853.84598691,0.00014,2]
[332188120,1721019040806,-8470.66427469,0.00014,2]
[332188123,1721019040826,-163442.7322628,0.00014,2]
[332188125,1721019040837,-222638.7851534,0.00014,2]
[332188128,1721019040848,-560.74648956,0.00014,2]
[332188130,1721019040859,-13256.87732019,0.00014,2]
[332188357,1721019043029,-435.99626862,0.00014,2]
[332188360,1721019043040,-302.23,0.00014,2]
[332188364,1721019043051,-300.1,0.00014,2]
[332188366,1721019043063,-301.132,0.00014,2]
[332188368,1721019043074,-274.264,0.00014,2]
[332188370,1721019043085,-309.865,0.00014,2]
[332188372,1721019043096,-248785.46596434,0.00014,2]
[332188375,1721019043107,-58747.03784142,0.00014,2]
[332188378,1721019043128,-6031.15578423,0.00014,2]
[332188380,1721019043141,-20846.16339031,0.00014,2]
[332188382,1721019043156,-5960.15353982,0.00014,2]
[332188384,1721019043167,-725.90112714,0.00014,2]
[332188387,1721019043178,-2835.0,0.00014,2]
[332188390,1721019043202,-1228.85548607,0.00014,2]
[332188392,1721019043211,-593.46391128,0.00014,2]
[332188398,1721019043259,-1081.77587847,0.00014,2]
[332188401,1721019043270,-364.00000001,0.00014,2]
[332188403,1721019043282,-516.50550932,0.00014,2]
[332188405,1721019043293,-993.88534933,0.00014,2]
[332188409,1721019043321,-700.0,0.00014,2]
[332188411,1721019043332,-310.17609142,0.00014,2]
[332188417,1721019043379,-250576.00000011,0.00014,2]
[332188420,1721019043395,-536.28001313,0.00014,2]
[332188422,1721019043408,-30000.0,0.00014,2]
[332188647,1721019045942,-258.345,0.00013777,2]
[332188649,1721019045952,-12.117826,0.00014,2]
[332188651,1721019045963,-819.48864063,0.00014,2]
[332188658,1721019046054,-514.60851173,0.00014,2]
[332188662,1721019046112,-2160.074,0.00014,2]
[332188671,1721019046225,-3435.2817797,0.00014,2]
[332188674,1721019046280,-1839.23938075,0.00014,2]
[332188675,1721019046291,-15070.45113487,0.00014,2]
[332188796,1721019094610,14870.00818028,0.00027,120]
[332188797,1721019196039,366.007278,0.00026628,120]
[332188798,1721019679712,1500.0,0.0001,2]
[332188800,1721019696942,10950.79668968,0.0001,2]
[332188801,1721019706980,1368.73674718,0.0001,2]
[332188802,1721019728801,188.89093705,0.0001,2]
[332188804,1721019761506,448.63993956,0.0001,2]
[332188805,1721019860700,448.63993956,0.0001,2]
[332188806,1721019871558,448.63993956,0.0001,2]
[332188808,1721019978841,448.63993956,0.0001,2]
[332188809,1721020065531,448.63993956,0.0001,2]
[332188818,1721020149529,448.63993956,0.0001,2]
[332188833,1721020232949,-437.88756239,0.00010645,2]
[332188834,1721020232959,-678.92,0.00010763,2]
[332188835,1721020232968,-150.0,0.00011097,2]
[332188836,1721020232977,-761.96260783,0.00011098,2]
[332188837,1721020232986,-256.10629075,0.00011098,2]
[332188838,1721020232995,-155.20565652,0.00011098,2]
[332188839,1721020233004,-304.76023272,0.00011098,2]
[332188840,1721020233013,-155.55407279,0.00011098,2]
[332188841,1721020233022,-237.71047658,0.00011098,2]
[332188842,1721020233031,-878.48878449,0.00011098,2]
[332188843,1721020233251,-5324.10018382,0.00011098,2]
[332188844,1721020233261,-1056.4639937,0.00011098,2]
[332188845,1721020233270,-156.34912644,0.00011098,2]
[332188846,1721020233279,-634.58709361,0.00011098,2]
[332188847,1721020233289,-157.23207017,0.00011098,2]
[332188848,1721020233298,-160.47660416,0.00011197,2]
[332188849,1721020233307,-1000.0,0.00011198,2]
[332188850,1721020233316,-2764.19268608,0.00011199,2]
[332188851,1721020233334,-553.70685896,0.00011199,2]
[332188852,1721020233346,-7499.01025656,0.00011199,2]
[332188853,1721020233362,-603.68196204,0.00011199,2]
[332188854,1721020233378,-854.8607206,0.00011199,2]
[332188855,1721020233389,-749.63222888,0.00011199,2]
[332188856,1721020233400,-7358.66839884,0.00011199,2]
[332188857,1721020233411,-543.83019264,0.00011199,2]
[332188858,1721020233430,-2627.8653846,0.00011199,2]
[332188859,1721020233439,-5044.11093768,0.00011199,2]
[332188879,1721020238123,-434.28703293,0.00011199,2]
[332188881,1721020238134,-948.90215079,0.00011199,2]
[332188883,1721020238147,-795.2682055,0.00011199,2]
[332188886,1721020238159,-1007.38297438,0.00011199,2]
[332188888,1721020238170,-7488.22927457,0.00011199,2]
[332188890,1721020238182,-284.51111494,0.00011199,2]
[332188893,1721020238198,-294.97,0.00011199,2]
[332188894,1721020238209,-3486.1,0.00011199,2]
[332188895,1721020238240,-845.57482597,0.00011199,2]
[332188896,1721020238251,-3724.77252696,0.00011199,2]
[332188897,1721020238260,-757.19605409,0.00011199,2]
[332188898,1721020238270,-188.04824218,0.00011199,2]
[332188899,1721020238279,-1254.63523304,0.00011199,2]
[332188900,1721020238289,-155.0,0.00011199,2]
[332188901,1721020238299,-156.0,0.00011199,2]
[332188902,1721020238309,-425.77539774,0.00011199,2]
[332188903,1721020238318,-357.07376764,0.00012121,2]
[332188904,1721020238328,-1368.19930946,0.00012121,2]
[332188905,1721020238338,-418.03932515,0.00012121,2]
[332188906,1721020238347,-946.27964523,0.00012121,2]
[332188907,1721020238357,-471.88999301,0.00012121,2]
[332188908,1721020238366,-195.0,0.00012151,2]
[332188909,1721020238375,-796.0,0.00012251,2]
[332188910,1721020238385,-5451.16,0.00012301,2]
[332188911,1721020238394,-2684.05,0.00012301,2]
[332188912,1721020238404,-1075.18,0.00012303,2]
[332188913,1721020238414,-234.99,0.00012303,2]
[332188914,1721020238423,-250.0,0.00012314,2]
[332188915,1721020238432,-181.59,0.00012502,2]
[332188916,1721020238442,-150.66623924,0.000126,2]
[332188917,1721020238451,-250.0,0.00012659,2]
[332188918,1721020238460,-640.0,0.00012687,2]
[332188919,1721020238470,-182.03,0.00012842,2]
[332188920,1721020238479,-2000.0,0.000129,3]
[332188921,1721020238488,-360.0,0.00012993,2]
[332188922,1721020238499,-1250.0,0.00013,2]
[332188923,1721020238512,-300.0,0.00013,2]
[332188924,1721020238522,-678.92,0.00013027,2]
[332188925,1721020238532,-415.29,0.00013041,2]
[332188926,1721020238543,-419.31,0.00013041,2]
[332188927,1721020238552,-582.0,0.00013087,2]
[332188928,1721020238750,-474.58097737,0.00013128,2]
[332188929,1721020238760,-2833.71037734,0.00013128,2]
[332188930,1721020238770,-300.0,0.00013178,2]
[332188931,1721020238779,-1058.26,0.00013178,2]
[332188932,1721020238789,-150.0,0.00013178,2]
[332188933,1721020238798,-150.0,0.00013178,2]
[332188934,1721020238807,-499.99,0.00013277,2]
[332188935,1721020238817,-621.470428,0.00013396,2]
[332188936,1721020238826,-207.15681,0.00013396,2]
[332188937,1721020238835,-157.401523,0.00013396,2]
[332188938,1721020238845,-340.8,0.00013452,2]
[332188939,1721020238854,-2636.22179028,0.00013472,2]
[332188940,1721020238864,-3397.72378841,0.00013472,2]
[332188941,1721020238874,-346.93460697,0.00013516,2]
[332188942,1721020238883,-304.22071678,0.00013516,2]
[332188943,1721020238893,-221.11360023,0.00013543,2]
[332188944,1721020238905,-789.6999555,0.00013543,2]
[332188945,1721020238915,-439.12822285,0.00013543,2]
[332188946,1721020238924,-5.85957867,0.00013563,2]
[332188947,1721020238936,-615.61084933,0.00013563,2]
[332188948,1721020238946,-207.15681,0.00013563,2]
[332188949,1721020238956,-79.38497385,0.000136,2]
[332188950,1721020238967,-469.79302615,0.000136,2]
[332188951,1721020238977,-1030.20697385,0.000136,2]
[332188952,1721020238988,-1126.00586729,0.000136,2]
[332188953,1721020238999,-1122.78715886,0.000136,2]
[332188954,1721020239009,-104.80911425,0.000136,2]
[332188955,1721020239020,-1886.19088575,0.000136,2]
[332188956,1721020239029,-5224.629,0.000136,2]
[332188957,1721020239038,-4287.0901172,0.000136,2]
[332188958,1721020239050,-1630.2418828,0.000136,2]
[332188959,1721020239060,-1200.0,0.000136,2]
[332188960,1721020239069,-1666.0,0.000136,2]
[332188961,1721020239079,-907.101052,0.000136,2]
[332188962,1721020239091,-4166.329948,0.000136,2]